fUST/lending_fUST_20250827
["ID","MTS","AMOUNT","RATE_DAILY","PERIOD"]
[381631090,1756299126530,-612.47,0.00024931,2]
[381631091,1756299126539,-480.0,0.00024931,2]
[381631092,1756299126548,-480.0,0.00024931,2]
[381631093,1756299126558,-480.0,0.00024931,2]
[381631094,1756299126567,-399.62276295,0.00024931,2]
[381631095,1756299126577,-480.0,0.00024931,2]
[381631096,1756299126586,-480.0,0.00024931,2]
[381631097,1756299126597,-512.19,0.00024931,2]
[381631098,1756299126606,-509.06,0.00024931,2]
[381631099,1756299126616,-612.82,0.00024931,2]
[381631100,1756299126626,-627.14,0.00024931,2]
[381631101,1756299126635,-624.19,0.00024931,2]
[381631102,1756299126644,-481.22,0.00024931,2]
[381631103,1756299126654,-528.91,0.00024931,2]
[381631104,1756299126664,-608.41,0.00024931,2]
[381631105,1756299126673,-480.0,0.00024931,2]
[381631106,1756299126683,-547.44,0.00024931,2]
[381631107,1756299126696,-480.0,0.00024931,2]
[381631108,1756299126706,-480.0,0.00024931,2]
[381631109,1756299126715,-402.25768488,0.00024931,2]
[381631110,1756299126727,-967.44,0.00024931,2]
[381631111,1756299126747,-522.91,0.00024931,2]
[381631112,1756299126764,-486.45,0.00024931,2]
[381631113,1756299126775,-624.58,0.00024931,2]
[381631114,1756299126787,-480.0,0.00024931,2]
[381631115,1756299126798,-480.0,0.00024931,2]
[381631116,1756299126808,-480.0,0.00024931,2]
[381631117,1756299126818,-1513.62,0.00024931,2]
[381631118,1756299126827,-740.6,0.00024931,2]
[381631119,1756299126836,-1456.95,0.00024931,2]
[381631120,1756299126846,-561.33,0.00024931,2]
[381631121,1756299126856,-480.0,0.00024931,2]
[381631122,1756299126865,-1610.42,0.00024931,2]
[381631123,1756299126875,-507.15,0.00024931,2]
[381631124,1756299126884,-289.62023927,0.00024931,2]
[381631125,1756299126893,-480.0,0.00024931,2]
[381631126,1756299126903,-628.11,0.00024931,2]
[381631127,1756299126912,-569.45,0.00024931,2]
[381631128,1756299126921,-480.0,0.00024931,2]
[381631129,1756299126931,-1196.37,0.00024931,2]
[381631130,1756299126940,-1184.81,0.00024931,2]
[381631131,1756299126950,-480.0,0.00024931,2]
[381631132,1756299126959,-595.51,0.00024931,2]
[381631133,1756299127044,-974.71,0.00024931,2]
[381631134,1756299127054,-680.85,0.00024931,2]
[381631135,1756299127064,-642.37,0.00024931,2]
[381631137,1756299127073,-480.0,0.00024931,2]
[381631138,1756299127082,-480.0,0.00024931,2]
[381631139,1756299127092,-620.04,0.00024931,2]
[381631140,1756299127101,-1799.04,0.00024931,2]
[381631141,1756299127110,-888.29,0.00024931,2]
[381631142,1756299127119,-511.13,0.00024931,2]
[381631143,1756299127128,-615.79,0.00024931,2]
[381631144,1756299127138,-1249.5,0.00024931,2]
[381631145,1756299127147,-837.84,0.00024931,2]
[381631146,1756299127156,-488.18,0.00024931,2]
[381631147,1756299127166,-480.0,0.00024931,2]
[381631148,1756299127175,-841.78,0.00024931,2]
[381631149,1756299127185,-818.54,0.00024931,2]
[381631150,1756299127198,-634.58,0.00024931,2]
[381631151,1756299127208,-480.0,0.00024931,2]
[381631152,1756299127218,-480.0,0.00024931,2]
[381631153,1756299127227,-1132.23,0.00024931,2]
[381631154,1756299127237,-480.0,0.00024931,2]
[381631155,1756299127247,-480.0,0.00024931,2]
[381631156,1756299127256,-630.18,0.00024931,2]
[381631157,1756299127265,-1020.11,0.00024931,2]
[381631158,1756299127274,-987.21,0.00024931,2]
[381631159,1756299127284,-480.0,0.00024931,2]
[381631160,1756299127294,-480.0,0.00024931,2]
[381631161,1756299127303,-480.0,0.00024931,2]
[381631162,1756299127312,-561.06,0.00024931,2]
[381631163,1756299127322,-544.78,0.00024931,2]
[381631164,1756299127331,-655.34,0.00024931,2]
[381631165,1756299127341,-660.63,0.00024931,2]
[381631166,1756299127350,-935.85,0.00024931,2]
[381631167,1756299127360,-1338.48,0.00024931,2]
[381631168,1756299127369,-480.0,0.00024931,2]
[381631169,1756299127379,-480.0,0.00024931,2]
[381631170,1756299127388,-775.56,0.00024931,2]
[381631171,1756299127398,-651.24,0.00024931,2]
[381631172,1756299127407,-480.0,0.00024931,2]
[381631173,1756299127417,-1057.73,0.00024931,2]
[381631174,1756299127427,-761.3,0.00024931,2]
[381631175,1756299127436,-631.68,0.00024931,2]
[381631176,1756299127449,-520.4,0.00024931,2]
[381631177,1756299127459,-628.89,0.00024931,2]
[381631178,1756299127468,-733.13,0.00024931,2]
[381631179,1756299127478,-480.0,0.00024931,2]
[381631180,1756299127488,-480.0,0.00024931,2]
[381631181,1756299127498,-1793.19,0.00024931,2]
[381631182,1756299127507,-480.0,0.00024931,2]
[381631183,1756299127516,-1312.96,0.00024931,2]
[381631184,1756299127526,-480.0,0.00024931,2]
[381631185,1756299127535,-480.0,0.00024931,2]
[381631186,1756299127546,-594.15,0.00024931,2]
[381631187,1756299127556,-628.83,0.00024931,2]
[381631188,1756299127565,-480.0,0.00024931,2]
[381631189,1756299127575,-480.0,0.00024931,2]
[381631190,1756299127585,-480.0,0.00024931,2]
[381631191,1756299127595,-902.71,0.00024931,2]
[381631192,1756299127604,-591.53,0.00024931,2]
[381631193,1756299127614,-480.0,0.00024931,2]
[381631194,1756299127623,-480.0,0.00024931,2]
[381631195,1756299127633,-480.0,0.00024931,2]
[381631196,1756299127642,-818.78,0.00024931,2]
[381631197,1756299127652,-480.0,0.00024931,2]
[381631198,1756299127662,-858.98,0.00024931,2]
[381631199,1756299127671,-480.0,0.00024931,2]
[381631200,1756299127681,-746.51,0.00024931,2]
[381631201,1756299127694,-480.0,0.00024931,2]
[381631202,1756299127704,-480.0,0.00024931,2]
[381631203,1756299127714,-625.32,0.00024931,2]
[381631204,1756299127725,-1365.1,0.00024931,2]
[381631205,1756299127735,-480.0,0.00024931,2]
[381631206,1756299127745,-480.0,0.00024931,2]
[381631207,1756299127755,-624.5,0.00024931,2]
[381631208,1756299127764,-497.34,0.00024931,2]
[381631209,1756299127775,-1152.04,0.00024931,2]
[381631210,1756299127784,-579.93,0.00024931,2]
[381631211,1756299127794,-599.34,0.00024931,2]
[381631212,1756299127803,-2015.87,0.00024931,2]
[381631213,1756299127812,-810.1,0.00024931,2]
[381631214,1756299127822,-793.74,0.00024931,2]
[381631215,1756299127831,-1099.58,0.00024931,2]
[381631216,1756299127841,-480.0,0.00024931,2]
[381631217,1756299127850,-480.0,0.00024931,2]
[381631218,1756299127861,-480.0,0.00024931,2]
[381631219,1756299127870,-480.0,0.00024931,2]
[381631220,1756299127880,-736.43,0.00024931,2]
[381631221,1756299127890,-1838.61,0.00024931,2]
[381631222,1756299127899,-898.68,0.00024931,2]
[381631223,1756299127909,-480.0,0.00024931,2]
[381631224,1756299127918,-480.0,0.00024931,2]
[381631225,1756299127928,-916.71,0.00024931,2]
[381631226,1756299127938,-480.0,0.00024931,2]
[381631227,1756299127949,-480.0,0.00024931,2]
[381631228,1756299127959,-480.0,0.00024931,2]
[381631229,1756299127968,-521.43,0.00024931,2]
[381631230,1756299127977,-480.0,0.00024931,2]
[381631231,1756299127987,-539.62,0.00024931,2]
[381631232,1756299127997,-727.24,0.00024931,2]
[381631233,1756299128007,-1170.25,0.00024931,2]
[381631234,1756299128016,-480.0,0.00024931,2]
[381631235,1756299128026,-1026.14,0.00024931,2]
[381631236,1756299128036,-909.76,0.00024931,2]
[381631237,1756299128045,-508.39286883,0.00024931,2]
[381631238,1756299128054,-480.0,0.00024931,2]
[381631239,1756299128064,-962.75,0.00024931,2]
[381631240,1756299128074,-711.06,0.00024931,2]
[381631241,1756299128084,-1249.43,0.00024931,2]
[381631242,1756299128093,-480.0,0.00024931,2]
[381631243,1756299128102,-480.0,0.00024931,2]
[381631244,1756299128111,-480.0,0.00024931,2]
[381631245,1756299128120,-480.0,0.00024931,2]
[381631246,1756299128130,-670.56,0.00024931,2]
[381631247,1756299128139,-780.75,0.00024931,2]
[381631248,1756299128151,-480.0,0.00024931,2]
[381631249,1756299128160,-633.62,0.00024931,2]
[381631250,1756299128170,-638.03,0.00024931,2]
[381631251,1756299128180,-480.0,0.00024931,2]
[381631252,1756299128189,-886.17,0.00024931,2]
[381631253,1756299128200,-1346.67,0.00024931,2]
[381631254,1756299128209,-677.64,0.00024931,2]
[381631255,1756299128219,-480.0,0.00024931,2]
[381631256,1756299128229,-480.0,0.00024931,2]
[381631257,1756299128238,-480.0,0.00024931,2]
[381631258,1756299128248,-741.13,0.00024931,2]
[381631259,1756299128258,-952.53,0.00024931,2]
[381631260,1756299128268,-480.0,0.00024931,2]
[381631261,1756299128277,-480.0,0.00024931,2]
[381631262,1756299128287,-635.74,0.00024931,2]
[381631263,1756299128296,-480.0,0.00024931,2]
[381631264,1756299128306,-574.03,0.00024931,2]
[381631265,1756299128315,-508.7,0.00024931,2]
[381631266,1756299128326,-687.48,0.00024931,2]
[381631267,1756299128335,-589.08852748,0.00024931,2]
[381631268,1756299128345,-1268.98,0.00024931,2]
[381631269,1756299128355,-480.0,0.00024931,2]
[381631270,1756299128365,-856.71,0.00024931,2]
[381631271,1756299128375,-480.0,0.00024931,2]
[381631272,1756299128385,-6495.25,0.00024931,2]
[381631273,1756299128395,-636.86,0.00024931,2]
[381631274,1756299128405,-480.0,0.00024931,2]
[381631275,1756299128415,-524.69,0.00024931,2]
[381631276,1756299128424,-486.07,0.00024931,2]
[381631277,1756299128434,-480.0,0.00024931,2]
[381631278,1756299128446,-1458.92,0.00024931,2]
[381631279,1756299128455,-905.99,0.00024931,2]
[381631280,1756299128466,-837.39,0.00024931,2]
[381631281,1756299128476,-624.44,0.00024931,2]
[381631282,1756299128486,-1847.92,0.00024931,2]
[381631283,1756299128496,-771.49,0.00024931,2]
[381631284,1756299128506,-1529.63,0.00024931,2]
[381631285,1756299128516,-8247.96,0.00024931,2]
[381631286,1756299128525,-3400.62,0.00024931,2]
[381631287,1756299128535,-583.48,0.00024931,2]
[381631288,1756299128545,-480.0,0.00024931,2]
[381631289,1756299128555,-402.08037265,0.00024931,2]
[381631290,1756299128564,-480.0,0.00024931,2]
[381631291,1756299128574,-480.0,0.00024931,2]
[381631292,1756299128584,-1076.84,0.00024931,2]
[381631293,1756299128594,-1635.61,0.00024931,2]
[381631294,1756299128604,-564.33,0.00024931,2]
[381631295,1756299128613,-480.0,0.00024931,2]
[381631296,1756299128623,-740.19,0.00024931,2]
[381631297,1756299128633,-1200.96,0.00024931,2]
[381631298,1756299128643,-1559.95,0.00024931,2]
[381631299,1756299128652,-1003.43,0.00024931,2]
[381631300,1756299128662,-480.0,0.00024931,2]
[381631301,1756299128672,-655.25,0.00024931,2]
[381631302,1756299128681,-1004.24,0.00024931,2]
[381631303,1756299128694,-1160.02,0.00024931,2]
[381631304,1756299128704,-626.39,0.00024931,2]
[381631305,1756299128714,-504.38,0.00024931,2]
[381631306,1756299128724,-480.0,0.00024931,2]
[381631307,1756299128734,-748.48,0.00024931,2]
[381631308,1756299128744,-868.0,0.00024931,2]
[381631309,1756299128753,-632.12,0.00024931,2]
[381631310,1756299128763,-656.18,0.00024931,2]
[381631311,1756299128772,-349.26413258,0.00024931,2]
[381631312,1756299128782,-480.0,0.00024931,2]
[381631313,1756299128791,-480.0,0.00024931,2]
[381631314,1756299128802,-515.28,0.00024931,2]
[381631315,1756299128811,-639.39,0.00024931,2]
[381631316,1756299128821,-1553.38,0.00024931,2]
[381631317,1756299128831,-860.92,0.00024931,2]
[381631318,1756299128840,-707.77,0.00024931,2]
[381631319,1756299128850,-480.0,0.00024931,2]
[381631320,1756299128860,-507.0,0.00024931,2]
[381631321,1756299128870,-621.34,0.00024931,2]
[381631322,1756299128879,-480.0,0.00024931,2]
[381631323,1756299128889,-961.78,0.00024931,2]
[381631324,1756299128899,-2093.04,0.00024931,2]
[381631325,1756299128908,-480.0,0.00024931,2]
[381631326,1756299128918,-481.67,0.00024931,2]
[381631327,1756299128927,-614.39987278,0.00024931,2]
[381631328,1756299128937,-861.82,0.00024931,2]
[381631329,1756299128948,-480.0,0.00024931,2]
[381631330,1756299128958,-906.46,0.00024931,2]
[381631331,1756299128968,-500.0,0.00024931,2]
[381631332,1756299128977,-1944.4,0.00024931,2]
[381631333,1756299128987,-480.0,0.00024931,2]
[381631334,1756299128997,-480.0,0.00024931,2]
[381631335,1756299129007,-480.0,0.00024931,2]
[381631336,1756299129017,-756.21,0.00024931,2]
[381631337,1756299129026,-691.47,0.00024931,2]
[381631338,1756299129036,-669.41,0.00024931,2]
[381631339,1756299129046,-822.12,0.00024931,2]
[381631340,1756299129055,-664.01,0.00024931,2]
[381631341,1756299129065,-5734.46,0.00024931,2]
[381631342,1756299129075,-480.0,0.00024931,2]
[381631343,1756299129086,-480.0,0.00024931,2]
[381631344,1756299129096,-480.0,0.00024931,2]
[381631345,1756299129106,-1472.58,0.00024931,2]
[381631346,1756299129115,-480.0,0.00024931,2]
[381631347,1756299129126,-480.0,0.00024931,2]
[381631348,1756299129136,-1010.62,0.00024931,2]
[381631349,1756299129146,-746.58,0.00024931,2]
[381631350,1756299129156,-945.67,0.00024931,2]
[381631351,1756299129167,-820.03,0.00024931,2]
[381631352,1756299129177,-2419.42,0.00024931,2]
[381631353,1756299129186,-2003.06,0.00024931,2]
[381631354,1756299129196,-712.33,0.00024931,2]
[381631355,1756299129205,-632.8,0.00024931,2]
[381631356,1756299129214,-1302.43,0.00024931,2]
[381631357,1756299129224,-879.19,0.00024931,2]
[381631358,1756299129234,-2358.04,0.00024931,2]
[381631359,1756299129244,-626.24,0.00024931,2]
[381631360,1756299129253,-341.51762784,0.00024931,2]
[381631361,1756299129263,-571.94,0.00024931,2]
[381631362,1756299129274,-1028.29,0.00024931,2]
[381631363,1756299129283,-480.0,0.00024931,2]
[381631364,1756299129293,-760.04,0.00024931,2]
[381631365,1756299129302,-480.0,0.00024931,2]
[381631366,1756299129312,-480.0,0.00024931,2]
[381631367,1756299129321,-534.07,0.00024931,2]
[381631368,1756299129331,-480.0,0.00024931,2]
[381631369,1756299129340,-773.62,0.00024931,2]
[381631370,1756299129350,-480.0,0.00024931,2]
[381631371,1756299129361,-480.0,0.00024931,2]
[381631372,1756299129371,-579.37,0.00024931,2]
[381631373,1756299129380,-481.34,0.00024931,2]
[381631374,1756299129390,-480.0,0.00024931,2]
[381631375,1756299129400,-689.04,0.00024931,2]
[381631376,1756299129409,-558.49,0.00024931,2]
[381631377,1756299129419,-3533.68,0.00024931,2]
[381631378,1756299129429,-480.0,0.00024931,2]
[381631379,1756299129438,-1078.58,0.00024931,2]
[381631380,1756299129448,-480.0,0.00024931,2]
[381631381,1756299129457,-877.94,0.00024931,2]
[381631382,1756299129467,-657.92,0.00024931,2]
[381631383,1756299129478,-541.91,0.00024931,2]
[381631384,1756299129487,-680.84,0.00024931,2]
[381631385,1756299129497,-1306.03,0.00024931,2]
[381631386,1756299129507,-4136.98,0.00024931,2]
[381631387,1756299129517,-480.0,0.00024931,2]
[381631388,1756299129529,-611.17,0.00024931,2]
[381631389,1756299129542,-1546.75,0.00024931,2]
[381631390,1756299129552,-745.97,0.00024931,2]
[381631391,1756299129562,-483.6,0.00024931,2]
[381631392,1756299129572,-1237.23,0.00024931,2]
[381631393,1756299129584,-2253.99,0.00024931,2]
[381631394,1756299129594,-4927.91,0.00024931,2]
[381631395,1756299129604,-480.0,0.00024931,2]
[381631396,1756299129614,-727.85,0.00024931,2]
[381631397,1756299129624,-711.45,0.00024931,2]
[381631398,1756299129633,-681.98,0.00024931,2]
[381631399,1756299129643,-2444.85,0.00024931,2]
[381631400,1756299129653,-1897.45,0.00024931,2]
[381631401,1756299129662,-2263.07,0.00024931,2]
[381631402,1756299129672,-4617.09,0.00024931,2]
[381631403,1756299129682,-1837.84,0.00024931,2]
[381631404,1756299129694,-480.0,0.00024931,2]
[381631405,1756299129703,-867.08,0.00024931,2]
[381631406,1756299129713,-480.0,0.00024931,2]
[381631407,1756299129723,-1079.7,0.00024931,2]
[381631408,1756299129734,-2907.91,0.00024931,2]
[381631409,1756299129743,-480.0,0.00024931,2]
[381631410,1756299129753,-1354.76,0.00024931,2]
[381631411,1756299129764,-2286.82,0.00024931,2]
[381631412,1756299129774,-576.96,0.00024931,2]
[381631413,1756299129784,-480.0,0.00024931,2]
[381631414,1756299129794,-1707.9,0.00024931,2]
[381631415,1756299129803,-812.92,0.00024931,2]
[381631416,1756299129813,-480.0,0.00024931,2]
[381631417,1756299129823,-739.93,0.00024931,2]
[381631418,1756299129832,-1062.67,0.00024931,2]
[381631419,1756299129842,-3535.34,0.00024931,2]
[381631420,1756299129851,-679.72,0.00024931,2]
[381631421,1756299129862,-550.73,0.00024931,2]
[381631422,1756299129872,-695.89,0.00024931,2]
[381631423,1756299129882,-577.42,0.00024931,2]
[381631424,1756299129892,-680.83,0.00024931,2]
[381631425,1756299129902,-600.93,0.00024931,2]
[381631426,1756299129912,-829.46,0.00024931,2]
[381631427,1756299129922,-1995.59,0.00024931,2]
[381631428,1756299129931,-1631.46,0.00024931,2]
[381631429,1756299129942,-1590.45,0.00024931,2]
[381631430,1756299129951,-480.0,0.00024931,2]
[381631431,1756299129962,-539.05,0.00024931,2]
[381631432,1756299129972,-712.28,0.00024931,2]
[381631433,1756299129982,-638.72,0.00024931,2]
[381631434,1756299129991,-266.71,0.00024931,2]
[381631435,1756299130001,-480.0,0.00024931,2]
[381631436,1756299130012,-480.0,0.00024931,2]
[381631437,1756299130022,-755.02,0.00024931,2]
[381631438,1756299130033,-480.0,0.00024931,2]
[381631439,1756299130048,-480.0,0.00024931,2]
[381631440,1756299130058,-789.18,0.00024931,2]
[381631441,1756299130068,-685.55,0.00024931,2]
[381631442,1756299130078,-2224.28,0.00024931,2]
[381631443,1756299130088,-480.0,0.00024931,2]
[381631444,1756299130097,-622.18,0.00024931,2]
[381631445,1756299130108,-1015.89,0.00024931,2]
[381631446,1756299130118,-480.0,0.00024931,2]
[381631447,1756299130133,-1801.64,0.00024931,2]
[381631448,1756299130143,-631.08,0.00024931,2]
[381631449,1756299130153,-678.47,0.00024931,2]
[381631450,1756299130163,-480.0,0.00024931,2]
[381631451,1756299130173,-908.23,0.00024931,2]
[381631452,1756299130183,-698.69,0.00024931,2]
[381631453,1756299130193,-480.0,0.00024931,2]
[381631454,1756299130203,-2888.9,0.00024931,2]
[381631455,1756299130213,-480.0,0.00024931,2]
[381631456,1756299130224,-901.06,0.00024931,2]
[381631457,1756299130233,-480.0,0.00024931,2]
[381631458,1756299130243,-480.0,0.00024931,2]
[381631459,1756299130254,-1290.3,0.00024931,2]
[381631460,1756299130264,-1110.35,0.00024931,2]
[381631461,1756299130274,-911.51,0.00024931,2]
[381631462,1756299130284,-711.28,0.00024931,2]
[381631463,1756299130294,-492.57,0.00024931,2]
[381631464,1756299130304,-500.0,0.00024932,2]
[381631465,1756299130313,-1150.0,0.0002495,2]
[381631466,1756299130323,-3000.0,0.00025,2]
[381631467,1756299130333,-1069.30978427,0.00025,2]
[381631468,1756299130343,-208.78691368,0.00025,2]
[381631469,1756299130352,-360.43207352,0.00025,2]
[381631470,1756299130362,-647.0,0.00025,2]
[381631471,1756299130372,-3000.0,0.0002501,2]
[381631472,1756299130382,-3000.0,0.0002502,2]
[381631473,1756299130391,-3000.0,0.0002503,2]
[381631474,1756299130401,-3000.0,0.0002504,2]
[381631475,1756299130411,-3000.0,0.0002505,2]
[381631476,1756299130421,-3000.0,0.0002506,2]
[381631477,1756299130431,-3000.0,0.0002507,2]
[381631478,1756299130441,-1775.54494446,0.0002508,2]
[381631479,1756299130450,-3000.0,0.0002508,2]
[381631480,1756299130460,-660.0,0.00025084,2]
[381631481,1756299130470,-3000.0,0.0002509,2]
[381631482,1756299130480,-3000.0,0.000251,2]
[381631483,1756299130490,-238.131514,0.00025102,2]
[381631484,1756299130500,-3000.0,0.0002511,2]
[381631485,1756299130509,-3000.0,0.0002512,2]
[381631486,1756299130519,-3000.0,0.0002513,2]
[381631487,1756299130529,-3000.0,0.0002514,2]
[381631488,1756299130539,-3000.0,0.0002515,2]
[381631489,1756299130549,-3000.0,0.0002516,2]
[381631490,1756299130559,-3500.0,0.0002516,2]
[381631491,1756299130569,-3000.0,0.0002517,2]
[381631492,1756299130579,-3000.0,0.0002518,2]
[381631493,1756299130589,-3000.0,0.0002519,2]
[381631494,1756299130599,-3000.0,0.000252,2]
[381631495,1756299130609,-1015.0,0.00025202,2]
[381631496,1756299130619,-480.0,0.00025205,2]
[381631497,1756299130630,-480.0,0.00025205,2]
[381631498,1756299130640,-480.0,0.00025205,2]
[381631499,1756299130650,-480.0,0.00025205,2]
[381631500,1756299130660,-480.0,0.00025205,2]
[381631501,1756299130671,-493.86,0.00025205,2]
[381631502,1756299130683,-480.0,0.00025205,2]
[381631503,1756299130697,-480.0,0.00025205,2]
[381631504,1756299130707,-562.7,0.00025205,2]
[381631505,1756299130717,-524.95,0.00025205,2]
[381631506,1756299130727,-480.0,0.00025205,2]
[381631507,1756299130736,-538.52,0.00025205,2]
[381631508,1756299130746,-550.62,0.00025205,2]
[381631509,1756299130756,-480.0,0.00025205,2]
[381631510,1756299130767,-534.78474961,0.00025205,2]
[381631511,1756299130777,-576.16,0.00025205,2]
[381631512,1756299130787,-662.66,0.00025205,2]
[381631513,1756299130797,-582.51,0.00025205,2]
[381631514,1756299130807,-480.0,0.00025205,2]
[381631515,1756299130817,-500.0,0.00025205,2]
[381631516,1756299130827,-480.0,0.00025205,2]
[381631517,1756299130836,-480.0,0.00025205,2]
[381631518,1756299130846,-606.2,0.00025205,2]
[381631519,1756299130856,-706.9,0.00025205,2]
[381631520,1756299130866,-480.0,0.00025205,2]
[381631521,1756299130876,-882.63,0.00025205,2]
[381631522,1756299130886,-480.0,0.00025205,2]
[381631523,1756299130895,-714.33,0.00025205,2]
[381631524,1756299130905,-612.47,0.00025205,2]
[381631525,1756299130915,-480.0,0.00025205,2]
[381631526,1756299130925,-480.0,0.00025205,2]
[381631527,1756299130934,-480.0,0.00025205,2]
[381631528,1756299130944,-480.0,0.00025205,2]
[381631529,1756299130954,-480.0,0.00025205,2]
[381631530,1756299130964,-512.19,0.00025205,2]
[381631531,1756299130973,-509.06,0.00025205,2]
[381631532,1756299130983,-612.82,0.00025205,2]
[381631533,1756299130994,-627.14,0.00025205,2]
[381631534,1756299131004,-624.19,0.00025205,2]
[381631535,1756299131014,-481.22,0.00025205,2]
[381631536,1756299131024,-528.91,0.00025205,2]
[381631537,1756299131041,-608.41,0.00025205,2]
[381631538,1756299131052,-280.56870134,0.00025205,2]
[381631539,1756299131061,-547.44,0.00025205,2]
[381631540,1756299131072,-480.0,0.00025205,2]
[381631541,1756299131081,-600.24437068,0.00025205,2]
[381631542,1756299131091,-967.44,0.00025205,2]
[381631543,1756299131101,-522.91,0.00025205,2]
[381631544,1756299131111,-486.45,0.00025205,2]
[381631545,1756299131306,-624.58,0.00025205,2]
[381631546,1756299131317,-480.0,0.00025205,2]
[381631547,1756299131327,-480.0,0.00025205,2]
[381631548,1756299131336,-480.0,0.00025205,2]
[381631549,1756299131346,-1513.62,0.00025205,2]
[381631550,1756299131356,-740.6,0.00025205,2]
[381631551,1756299131366,-1456.95,0.00025205,2]
[381631552,1756299131376,-561.33,0.00025205,2]
[381631553,1756299131386,-480.0,0.00025205,2]
[381631554,1756299131395,-1610.42,0.00025205,2]
[381631555,1756299131405,-507.15,0.00025205,2]
[381631556,1756299131414,-480.0,0.00025205,2]
[381631557,1756299131424,-628.11,0.00025205,2]
[381631558,1756299131433,-569.45,0.00025205,2]
[381631559,1756299131444,-480.0,0.00025205,2]
[381631560,1756299131453,-1196.37,0.00025205,2]
[381631561,1756299131463,-1184.81,0.00025205,2]
[381631562,1756299131473,-480.0,0.00025205,2]
[381631563,1756299131483,-595.51,0.00025205,2]
[381631564,1756299131492,-974.71,0.00025205,2]
[381631565,1756299131502,-680.85,0.00025205,2]
[381631566,1756299131511,-642.37,0.00025205,2]
[381631567,1756299131520,-480.0,0.00025205,2]
[381631568,1756299131531,-480.0,0.00025205,2]
[381631569,1756299131542,-620.04,0.00025205,2]
[381631570,1756299131551,-1799.04,0.00025205,2]
[381631571,1756299131560,-888.29,0.00025205,2]
[381631572,1756299131570,-511.13,0.00025205,2]
[381631573,1756299131579,-615.79,0.00025205,2]
[381631574,1756299131589,-837.84,0.00025205,2]
[381631575,1756299131599,-1249.5,0.00025205,2]
[381631576,1756299131608,-488.18,0.00025205,2]
[381631577,1756299131618,-480.0,0.00025205,2]
[381631578,1756299131629,-841.78,0.00025205,2]
[381631579,1756299131639,-818.54,0.00025205,2]
[381631580,1756299131648,-634.58,0.00025205,2]
[381631581,1756299131658,-480.0,0.00025205,2]
[381631582,1756299131667,-480.0,0.00025205,2]
[381631583,1756299131677,-1132.23,0.00025205,2]
[381631584,1756299131687,-480.0,0.00025205,2]
[381631585,1756299131700,-480.0,0.00025205,2]
[381631586,1756299131709,-630.18,0.00025205,2]
[381631587,1756299131719,-1020.11,0.00025205,2]
[381631588,1756299131728,-987.21,0.00025205,2]
[381631589,1756299131739,-480.0,0.00025205,2]
[381631590,1756299131748,-480.0,0.00025205,2]